fUSD/lending_fUSD_20260309
["ID","MTS","AMOUNT","RATE_DAILY","PERIOD"]
[408030911,1773054639917,-512.0,0.00019618,2]
[408030912,1773054639927,-758.09557151,0.00019622,2]
[408030913,1773054639937,-7293.80349562,0.00019644,2]
[408030914,1773054639947,-557.0,0.00019645,2]
[408030915,1773054639956,-157.72017223,0.00019651,2]
[408030916,1773054639966,-415.0,0.0001967,5]
[408030917,1773054639975,-500.0,0.00019672,2]
[408030918,1773054639985,-500.0,0.00019672,2]
[408030919,1773054639995,-500.0,0.00019672,2]
[408030920,1773054640006,-500.0,0.00019672,2]
[408030921,1773054640015,-500.0,0.00019672,2]
[408030922,1773054640025,-500.0,0.00019672,2]
[408030923,1773054640035,-500.0,0.00019672,2]
[408030926,1773054640045,-500.0,0.00019672,2]
[408030927,1773054640057,-500.0,0.00019672,2]
[408030928,1773054640070,-200.0,0.00019672,2]
[408030929,1773054640080,-150.0,0.00019672,2]
[408030930,1773054640091,-500.0,0.00019672,2]
[408030931,1773054640101,-1511.0,0.00019672,2]
[408030932,1773054640111,-500.0,0.00019672,2]
[408030933,1773054640120,-500.0,0.00019672,2]
[408030934,1773054640131,-419.0,0.00019672,2]
[408030935,1773054640141,-711.0,0.00019672,2]
[408030936,1773054640152,-150.0,0.00019672,2]
[408030937,1773054640161,-500.0,0.00019672,2]
[408030938,1773054640171,-458.0,0.00019672,2]
[408030939,1773054640182,-500.0,0.00019672,2]
[408030940,1773054640193,-1059.0,0.00019672,2]
[408030941,1773054640203,-500.0,0.00019672,2]
[408030942,1773054640213,-204.61846768,0.00019672,2]
[408030943,1773054640224,-500.0,0.00019673,2]
[408030944,1773054640236,-1080.0,0.00019673,2]
[408030945,1773054640246,-500.0,0.00019673,2]
[408030946,1773054640256,-512.0,0.00019673,2]
[408030947,1773054640265,-150.0,0.00019673,2]
[408030948,1773054640275,-150.0,0.00019673,2]
[408030949,1773054640285,-150.0,0.00019673,2]
[408030950,1773054640295,-150.0,0.00019673,2]
[408030951,1773054640305,-150.0,0.00019673,2]
[408030952,1773054640315,-150.0,0.00019673,2]
[408030953,1773054640325,-300.0,0.00019673,2]
[408030954,1773054640334,-1952.5766613,0.00019673,2]
[408030955,1773054640344,-166.66,0.00019684,2]
[408030956,1773054640353,-1932.54081092,0.00019687,2]
[408030957,1773054640388,-387.75502244,0.00019687,2]
[408030958,1773054640400,-4973.50766226,0.00019687,2]
[408030959,1773054640410,-2000.0,0.000197,2]
[408030960,1773054640420,-2000.0,0.000197,2]
[408030961,1773054640434,-250.0,0.000197,2]
[408030962,1773054640444,-150.0,0.00019726,2]
[408030963,1773054640454,-150.0,0.00019726,2]
[408030964,1773054640464,-150.0,0.00019726,2]
[408030965,1773054640473,-150.0,0.00019726,2]
[408030966,1773054640483,-150.0,0.00019726,2]
[408030967,1773054640493,-1000.0,0.00019726,2]
[408030968,1773054640502,-150.0,0.00019727,2]
[408030969,1773054640512,-500.0,0.00019727,2]
[408030970,1773054640522,-1511.0,0.00019727,2]
[408030971,1773054640532,-192.34426162,0.00019727,2]
[408030972,1773054640542,-500.0,0.00019727,2]
[408030973,1773054640552,-419.0,0.00019727,2]
[408030974,1773054640562,-711.0,0.00019727,2]
[408030975,1773054640571,-500.0,0.00019727,2]
[408030976,1773054640582,-458.0,0.00019727,2]
[408030977,1773054640591,-500.0,0.00019727,2]
[408030978,1773054640601,-1059.0,0.00019727,2]
[408030979,1773054640610,-500.0,0.00019727,2]
[408030980,1773054640620,-500.0,0.00019727,2]
[408030981,1773054640630,-1080.0,0.00019727,2]
[408030982,1773054640640,-500.0,0.00019727,2]
[408030983,1773054640649,-512.0,0.00019727,2]
[408030984,1773054640659,-150.0,0.00019728,2]
[408030985,1773054640670,-150.0,0.00019728,2]
[408030986,1773054640680,-150.0,0.00019728,2]
[408030987,1773054640689,-150.0,0.00019728,2]
[408030988,1773054640700,-250.0,0.00019728,2]
[408030989,1773054640710,-7293.80349562,0.00019729,2]
[408030990,1773054640721,-1952.5766613,0.0001973,2]
[408030991,1773054640732,-227.0,0.00019738,2]
[408030992,1773054640742,-250.0,0.00019749,2]
[408030993,1773054640752,-758.09557151,0.00019761,2]
[408030994,1773054640762,-7293.80349562,0.00019772,2]
[408030995,1773054640772,-250.0,0.00019779,2]
[408030996,1773054640782,-150.0,0.00019781,2]
[408030997,1773054640791,-150.0,0.00019781,2]
[408030998,1773054640801,-150.0,0.00019781,2]
[408030999,1773054640814,-500.0,0.00019782,2]
[408031000,1773054640824,-1511.0,0.00019782,2]
[408031001,1773054640834,-500.0,0.00019782,2]
[408031002,1773054640844,-419.0,0.00019782,2]
[408031003,1773054640853,-711.0,0.00019782,2]
[408031004,1773054640863,-500.0,0.00019782,2]
[408031005,1773054640873,-458.0,0.00019782,2]
[408031006,1773054640883,-1059.0,0.00019782,2]
[408031007,1773054640893,-500.0,0.00019782,2]
[408031008,1773054640903,-500.0,0.00019782,2]
[408031009,1773054640913,-500.0,0.00019782,2]
[408031010,1773054640923,-1080.0,0.00019782,2]
[408031011,1773054640933,-587.84963494,0.00019782,2]
[408031012,1773054640943,-512.0,0.00019782,2]
[408031013,1773054640952,-150.0,0.00019783,2]
[408031014,1773054640962,-150.0,0.00019783,2]
[408031015,1773054640972,-151.0,0.00019783,2]
[408031016,1773054640982,-1952.5766613,0.00019787,2]
[408031017,1773054640992,-3873.444,0.00019792,2]
[408031018,1773054641002,-181.359,0.000198,2]
[408031019,1773054641012,-1601.34175,0.000198,2]
[408031020,1773054641022,-1601.34176,0.000198,2]
[408031021,1773054641032,-967.1067069,0.000198,2]
[408031022,1773054641041,-250.0,0.000198,2]
[408031023,1773054641051,-28037.78045516,0.0001981,2]
[408031024,1773054641075,-2389.52625481,0.0001981,2]
[408031025,1773054641088,-134640.75863602,0.0001981,2]
[408031026,1773054641125,-1064.40417485,0.0001981,2]
[408031027,1773054641137,-1154.38291172,0.0001981,2]
[408031028,1773054641278,-6221.40746089,0.0001981,2]
[408031029,1773054641290,-151.0,0.0001981,2]
[408031030,1773054641301,-151.0,0.0001981,2]
[408031031,1773054641311,-7293.80349562,0.00019815,2]
[408031032,1773054641321,-227.0,0.00019815,2]
[408031033,1773054641331,-1279.0,0.00019821,2]
[408031034,1773054641341,-150.223,0.00019821,2]
[408031035,1773054641351,-1213.0,0.00019821,2]
[408031036,1773054641361,-922.0,0.00019821,2]
[408031037,1773054641370,-5994.0,0.00019821,2]
[408031038,1773054641380,-2461.0,0.00019821,2]
[408031039,1773054641390,-414.0,0.00019821,2]
[408031040,1773054641399,-150.0,0.00019836,2]
[408031041,1773054641409,-500.0,0.00019836,2]
[408031042,1773054641418,-340.05274297,0.00019837,2]
[408031043,1773054641428,-1511.0,0.00019837,2]
[408031044,1773054641438,-500.0,0.00019837,2]
[408031045,1773054641447,-419.0,0.00019837,2]
[408031046,1773054641456,-711.0,0.00019837,2]
[408031047,1773054641466,-500.0,0.00019837,2]
[408031048,1773054641475,-458.0,0.00019837,2]
[408031049,1773054641485,-1059.0,0.00019837,2]
[408031050,1773054641494,-450.19393605,0.00019837,2]
[408031051,1773054641503,-500.0,0.00019837,2]
[408031052,1773054641512,-500.0,0.00019837,2]
[408031053,1773054641522,-1080.0,0.00019837,2]
[408031054,1773054641531,-512.0,0.00019837,2]
[408031055,1773054641541,-150.0,0.00019837,2]
[408031056,1773054641550,-200.0,0.0001984,2]
[408031057,1773054641559,-1952.5766613,0.00019843,2]
[408031058,1773054641571,-250.0,0.00019844,2]
[408031059,1773054641580,-2947.52,0.00019844,2]
[408031060,1773054641589,-2947.52,0.00019844,2]
[408031061,1773054641599,-4720.48,0.00019844,2]
[408031062,1773054641608,-557.0,0.00019849,2]
[408031063,1773054641618,-7293.80349562,0.00019857,2]
[408031064,1773054641628,-150.0,0.00019873,2]
[408031065,1773054641638,-463.4000001,0.00019873,2]
[408031066,1773054641648,-220.66738088,0.00019873,2]
[408031067,1773054641657,-25000.0,0.00019874,3]
[408031068,1773054641667,-250.0,0.00019874,3]
[408031069,1773054641676,-267.0,0.00019878,2]
[408031070,1773054641686,-1458.1583,0.0001988,2]
[408031071,1773054641696,-25000.0,0.00019882,3]
[408031072,1773054641705,-220.66738087,0.00019887,2]
[408031073,1773054641715,-227.0,0.00019887,2]
[408031074,1773054641724,-500.0,0.0001989,2]
[408031075,1773054641734,-150.0,0.0001989,2]
[408031076,1773054641744,-25000.0,0.00019891,3]
[408031077,1773054642014,-2145.0,0.00019891,2]
[408031078,1773054642024,-1511.0,0.00019892,2]
[408031079,1773054642033,-500.0,0.00019892,2]
[408031080,1773054642043,-419.0,0.00019892,2]
[408031081,1773054642052,-711.0,0.00019892,2]
[408031082,1773054642065,-500.0,0.00019892,2]
[408031083,1773054642075,-458.0,0.00019892,2]
[408031084,1773054642083,-1059.0,0.00019892,2]
[408031085,1773054642092,-500.0,0.00019892,2]
[408031086,1773054642102,-500.0,0.00019892,2]
[408031087,1773054642111,-1080.0,0.00019892,2]
[408031088,1773054642119,-512.0,0.00019892,2]
[408031089,1773054642128,-151.0,0.00019892,2]
[408031090,1773054642138,-250.0,0.00019892,2]
[408031091,1773054642147,-1088.2166,0.00019899,2]
[408031092,1773054642156,-500.0,0.00019899,2]
[408031093,1773054642166,-500.0,0.00019899,2]
[408031094,1773054642175,-500.0,0.00019899,2]
[408031095,1773054642184,-500.0,0.00019899,2]
[408031096,1773054642193,-500.0,0.00019899,2]
[408031097,1773054642203,-500.0,0.00019899,2]
[408031098,1773054642212,-390.03191477,0.00019899,2]
[408031099,1773054642222,-2000.0,0.000199,2]
[408031100,1773054642231,-305.35814968,0.000199,2]
[408031101,1773054642242,-708.16830237,0.000199,2]
[408031102,1773054642251,-25000.0,0.000199,3]
[408031103,1773054642261,-2000.0,0.000199,2]
[408031104,1773054642270,-1088.66773329,0.000199,2]
[408031105,1773054642279,-758.09557151,0.000199,2]
[408031106,1773054642288,-6629.51072437,0.000199,3]
[408031107,1773054642297,-4834.85672202,0.000199,2]
[408031108,1773054642306,-250.0,0.000199,3]
[408031109,1773054642315,-1952.5766613,0.000199,2]
[408031110,1773054642325,-220.66738087,0.000199,2]
[408031111,1773054642335,-7293.80349562,0.000199,2]
[408031112,1773054642344,-8531.31265296,0.000199,2]
[408031113,1773054642353,-4819.04359242,0.000199,2]
[408031114,1773054642362,-250.0,0.00019935,3]
[408031115,1773054642372,-250.0,0.00019945,2]
[408031116,1773054642383,-1511.0,0.00019946,2]
[408031117,1773054642392,-500.0,0.00019946,2]
[408031118,1773054642401,-419.0,0.00019946,2]
[408031119,1773054642410,-711.0,0.00019946,2]
[408031120,1773054642419,-500.0,0.00019946,2]
[408031121,1773054642429,-458.0,0.00019946,2]
[408031122,1773054642438,-1059.0,0.00019946,2]
[408031123,1773054642447,-500.0,0.00019946,2]
[408031124,1773054642457,-500.0,0.00019947,2]
[408031125,1773054642466,-1080.0,0.00019947,2]
[408031126,1773054642476,-512.0,0.00019947,2]
[408031127,1773054642485,-1108.21987424,0.0001995,15]
[408031128,1773054642495,-5182.5682005,0.00019972,2]
[408031129,1773054642504,-500.0,0.00019973,2]
[408031130,1773054642512,-3664.0,0.00019973,2]
[408031131,1773054642522,-250.0,0.00019973,3]
[408031132,1773054642531,-118906.15753635,0.0001998,2]
[408031133,1773054642540,-151.0,0.0001998,2]
[408031134,1773054642550,-151.0,0.0001998,2]
[408031135,1773054642559,-151.0,0.0001998,2]
[408031136,1773054642569,-151.0,0.0001998,2]
[408031137,1773054642578,-151.0,0.0001998,2]
[408031138,1773054642587,-151.0,0.0001998,2]
[408031139,1773054642596,-151.0,0.0001998,2]
[408031140,1773054642605,-151.0,0.0001998,2]
[408031141,1773054642615,-233.667272,0.0001998,2]
[408031142,1773054642624,-151.0,0.0001998,2]
[408031143,1773054642635,-151.0,0.0001998,2]
[408031144,1773054642644,-151.0,0.0001998,2]
[408031145,1773054642654,-173.739302,0.0001998,2]
[408031146,1773054642662,-151.0,0.0001998,2]
[408031147,1773054642671,-150.182,0.0001999,2]
[408031148,1773054642681,-150.0,0.0001999,2]
[408031149,1773054642691,-150.1,0.0001999,2]
[408031150,1773054642700,-150.0,0.0001999,2]
[408031151,1773054642709,-150.0,0.0001999,2]
[408031152,1773054642718,-150.0,0.0001999,2]
[408031153,1773054642727,-150.186,0.0001999,2]
[408031154,1773054642737,-3505.0,0.0001999,2]
[408031155,1773054642746,-619.0,0.0001999,2]
[408031156,1773054642755,-1342.0,0.0001999,2]
[408031157,1773054642765,-23664.84570739,0.00019999,2]
[408031158,1773054642774,-64320.5471833,0.00019999,2]
[408031159,1773054642783,-22126.3951111,0.00019999,2]
[408031160,1773054642793,-150.0,0.00019999,2]
[408031161,1773054642802,-155.509,0.00019999,2]
[408031162,1773054642811,-49430.9126923,0.00019999,2]
[408031163,1773054642820,-3035.0137406,0.00019999,2]
[408031164,1773054642830,-9630.697401,0.00019999,2]
[408031165,1773054642839,-33181.70399474,0.00019999,2]
[408031166,1773054642848,-500.0,0.00019999,2]
[408031167,1773054642857,-500.0,0.00019999,2]
[408031168,1773054642867,-500.0,0.00019999,2]
[408031169,1773054642875,-500.0,0.00019999,2]
[408031170,1773054642885,-500.0,0.00019999,2]
[408031171,1773054642894,-500.0,0.00019999,2]
[408031172,1773054642903,-500.0,0.00019999,2]
[408031173,1773054642912,-500.0,0.00019999,2]
[408031174,1773054642920,-504.66308381,0.00019999,2]
[408031175,1773054642929,-3000.0,0.00019999,2]
[408031176,1773054642939,-160.53387614,0.00019999,2]
[408031177,1773054642947,-2683.0,0.0002,2]
[408031178,1773054642956,-159850.46871484,0.0002,2]
[408031179,1773054642969,-479.6862683,0.0002,2]
[408031182,1773054643863,-339.2652954,0.0002,2]
[408031183,1773054643874,-4845.38929979,0.0002,2]
[408031184,1773054643894,-5622.82452074,0.0002,2]
[408031188,1773054645927,-150.0,0.000199,2]
[408031189,1773054645938,-953.22947342,0.0002,2]
[408031192,1773054646564,500.0,0.000168,2]
[408031195,1773055035914,500.0,0.00015,30]
[408031196,1773055035944,500.0,0.00015,30]
[408031197,1773055036408,500.0,0.00015,30]
[408031198,1773055036449,500.0,0.00015,30]
[408031199,1773055036689,500.0,0.00015,30]
[408031200,1773055036891,500.0,0.00015,30]
[408031201,1773055037156,500.0,0.00015,30]
[408031202,1773055037366,500.0,0.00015,30]
[408031203,1773055037637,698.73765731,0.00011894,2]
[408031204,1773055037846,301.27234269,0.00011894,2]
[408031205,1773055037869,198.72765731,0.00011894,2]
[408031206,1773055038305,500.0,0.00011894,2]
[408031207,1773055038811,975.24401555,0.00011894,2]
[408031208,1773055040171,500.0,0.00015,30]
[408031209,1773055040659,500.0,0.00015,30]
[408031210,1773055041163,500.0,0.00015,30]
[408031211,1773055041429,500.0,0.00015,30]
[408031212,1773055041457,211.25967557,0.00015,30]
[408031213,1773055041643,500.0,0.00011894,2]
[408031214,1773055041934,500.0,0.00015,30]
[408031215,1773055042159,114.77865157,0.00011894,2]
[408031216,1773055042185,385.22134843,0.00011894,2]
[408031217,1773055042399,500.0,0.00015,30]
[408031218,1773055042661,500.0,0.00011894,2]
[408031219,1773055042905,500.0,0.00015,30]
[408031220,1773055043210,785.45770305,0.00011894,2]
[408031221,1773055043372,500.0,0.00015,30]
[408031222,1773055045070,500.0,0.00011894,2]
[408031223,1773055045097,500.0,0.00015,30]
[408031224,1773055045169,500.0,0.00011894,2]
[408031225,1773055045211,329.33094852,0.00015,30]
[408031226,1773055045233,170.66905148,0.00015,30]
[408031227,1773055045320,500.0,0.00015,30]
[408031228,1773055045353,500.0,0.00011894,2]
[408031229,1773055045456,500.0,0.00015,30]
[408031230,1773055045483,500.0,0.00011894,2]
[408031231,1773055045744,500.0,0.00011894,2]
[408031232,1773055045771,596.29210205,0.00011894,2]
[408031233,1773055046217,840.83695784,0.00011894,2]
[408031234,1773055047043,500.0,0.00015,30]
[408031235,1773055047108,500.0,0.00015,30]
[408031236,1773055047437,62.88094011,0.00015,30]
[408031237,1773055047461,639.29681368,0.00015,30]
[408031238,1773055047499,500.0,0.00015,30]
[408031239,1773055047604,500.0,0.00015,30]
[408031240,1773055047993,500.0,0.00011894,2]
[408031241,1773055048080,500.0,0.00015,30]
[408031242,1773055048545,500.0,0.00011894,2]
[408031243,1773055048575,500.0,0.00011894,2]
[408031244,1773055049036,616.99604029,0.00011894,2]
[408031245,1773055148524,444.88,0.00016894,2]
[408031247,1773055340919,298.83714603,0.00015,30]
[408031248,1773055340943,201.16285397,0.00015,30]
[408031249,1773055341406,500.0,0.00015,30]
[408031250,1773055341869,500.0,0.00015,30]
[408031251,1773055342357,500.0,0.00015,30]
[408031252,1773055342906,500.0,0.00011894,2]
[408031253,1773055343325,500.0,0.00011894,2]
[408031254,1773055344630,500.0,0.00011894,2]
[408031255,1773055344699,938.51687155,0.00011894,2]
[408031256,1773055347141,500.0,0.00015,30]
[408031257,1773055347598,360.33027448,0.00015,30]
[408031258,1773055347620,139.66972552,0.00015,30]
[408031259,1773055348103,500.0,0.00015,30]
[408031260,1773055348548,500.0,0.00011894,2]
[408031261,1773055349022,500.0,0.00011894,2]
[408031262,1773055573196,195.06,0.00014,2]
[408031263,1773055642873,500.0,0.00015,30]
[408031264,1773055643110,526.41036631,0.00015,30]
[408031265,1773055643359,500.0,0.00015,30]
[408031266,1773055643864,500.0,0.00011894,2]
[408031267,1773055644379,500.0,0.00011894,2]
[408031268,1773055650844,471.80251208,0.00015,30]
[408031275,1773055831946,-513.0,0.00017,2]
[408031276,1773055831955,-165.17,0.00017451,2]
[408031277,1773055831964,-500.0,0.00017572,2]
[408031278,1773055831974,-737.44048288,0.00017577,2]
[408031279,1773055831999,-235.22943712,0.00017577,2]
[408031280,1773055832008,-1600.0,0.00017596,2]
[408031281,1773055832019,-200.0,0.00017666,2]
[408031282,1773055832028,-187.0,0.00017671,2]
[408031283,1773055832038,-1987.9238731,0.00017807,2]
[408031284,1773055832050,-447.6518775,0.00017807,2]
[408031285,1773055832059,-200.0,0.00017808,2]
[408031286,1773055832069,-88.21681147,0.00017839,2]
[408031301,1773055832397,-198.46318853,0.00017839,2]
[408031305,1773055832435,-4998.40376278,0.00017907,2]
[408031307,1773055832445,-5141.69379,0.00018,30]
[408031309,1773055832455,-3240.0,0.00018118,2]
[408031310,1773055832465,-152.0,0.0001814,3]
[408031312,1773055832474,-500.0,0.00018173,2]
[408031314,1773055832484,-500.0,0.00018186,2]
[408031316,1773055832493,-500.0,0.00018186,2]
[408031317,1773055832503,-500.0,0.00018186,2]
[408031318,1773055832512,-500.0,0.00018186,2]
[408031319,1773055832521,-500.0,0.00018186,2]
[408031320,1773055832531,-500.0,0.00018186,2]
[408031322,1773055832540,-500.0,0.00018186,2]
[408031324,1773055832550,-500.0,0.00018186,2]
[408031325,1773055832560,-200.0,0.00018186,2]
[408031326,1773055832569,-151.0,0.00018186,2]
[408031327,1773055832578,-151.0,0.00018186,2]
[408031328,1773055832597,-151.0,0.00018186,2]
[408031329,1773055832607,-151.0,0.00018186,2]
[408031330,1773055832618,-151.0,0.00018186,2]
[408031331,1773055832628,-151.0,0.00018186,2]
[408031332,1773055832637,-151.0,0.00018186,2]
[408031333,1773055832648,-151.0,0.00018186,2]
[408031334,1773055832658,-151.0,0.00018186,2]
[408031335,1773055832668,-151.0,0.00018186,2]
[408031336,1773055832678,-151.0,0.00018186,2]
[408031337,1773055832688,-151.0,0.00018186,2]
[408031338,1773055832699,-151.0,0.00018186,2]
[408031339,1773055832709,-151.0,0.00018186,2]
[408031340,1773055832718,-151.0,0.00018186,2]
[408031341,1773055832728,-151.0,0.00018186,2]
[408031342,1773055832737,-289.57214403,0.00018186,2]
[408031343,1773055832747,-151.0,0.00018186,2]
[408031344,1773055832757,-151.0,0.00018186,2]
[408031345,1773055832766,-4820.12542113,0.00018195,2]
[408031346,1773055832776,-95538.17,0.00018197,2]
[408031347,1773055832786,-6148.64056947,0.00018207,2]
[408031348,1773055832795,-500.0,0.00018356,7]
[408031349,1773055832805,-500.0,0.00018356,7]
[408031350,1773055832814,-500.0,0.00018356,7]
[408031351,1773055832824,-1300.29653448,0.00018433,2]
[408031352,1773055832833,-999.99,0.00018533,2]
[408031353,1773055832843,-9999.99,0.00018533,2]
[408031354,1773055832853,-1476.68,0.00018533,2]
[408031355,1773055832863,-9999.99,0.00018533,2]
[408031356,1773055832872,-1566.25,0.00018533,2]
[408031357,1773055832882,-9999.99,0.00018533,2]
[408031358,1773055832892,-719.21,0.00018533,2]
[408031359,1773055832901,-1118.63,0.00018533,2]
[408031360,1773055832911,-1615.55,0.00018533,2]
[408031361,1773055832920,-150.99,0.00018533,2]
[408031362,1773055832930,-9999.99,0.00018533,2]
[408031363,1773055832940,-9999.99,0.00018533,2]
[408031364,1773055832949,-238.1,0.00018533,2]
[408031365,1773055832959,-299.99,0.00018533,4]
[408031366,1773055832969,-312.13,0.00018533,2]
[408031367,1773055832979,-500.0,0.00018533,2]
[408031368,1773055832988,-256.86,0.00018562,2]
[408031369,1773055832998,-500.0,0.00018573,2]
[408031370,1773055833008,-200.0,0.00018593,2]
[408031371,1773055833017,-1300.29653446,0.00018596,2]
[408031372,1773055833027,-286.68,0.00018731,2]
[408031373,1773055833036,-1300.29653446,0.00018759,2]
[408031374,1773055833045,-256.86,0.00018836,2]
[408031375,1773055833054,-152.0,0.00018872,4]
[408031376,1773055833064,-3046.74894478,0.00018899,2]
[408031377,1773055833073,-1262.33766609,0.00018899,2]
[408031378,1773055833082,-2500.0,0.00018899,2]
[408031379,1773055833092,-513.0,0.00018909,3]
[408031380,1773055833101,-1300.29653446,0.00018922,2]
[408031381,1773055833111,-500.0,0.00018956,2]
[408031382,1773055833121,-500.56489866,0.00018973,2]
[408031383,1773055833130,-500.0,0.00018973,2]
[408031384,1773055833144,-163.7437981,0.00018973,2]
[408031385,1773055833154,-500.0,0.00018973,2]
[408031386,1773055833164,-501.46144244,0.00018973,2]
[408031387,1773055833174,-500.0,0.00018973,2]
[408031388,1773055833184,-500.0,0.00018973,2]
[408031389,1773055833194,-501.37407519,0.00018973,2]
[408031390,1773055833204,-500.0,0.00018973,2]
[408031391,1773055833214,-8000.0,0.00018999,2]
[408031392,1773055833224,-500.0,0.00018999,2]
[408031393,1773055833233,-250.0,0.00018999,2]
[408031394,1773055833243,-8000.0,0.00018999,2]
[408031395,1773055833252,-250.0,0.00018999,2]
[408031396,1773055833262,-2904.77585634,0.00018999,2]
[408031397,1773055833275,-765.71985383,0.00018999,2]
[408031398,1773055833287,-579.76289887,0.00018999,2]
[408031399,1773055833299,-856.65432573,0.00018999,2]
[408031400,1773055833310,-972.66991975,0.00018999,2]
[408031401,1773055833322,-729.51283028,0.00018999,2]
[408031402,1773055833333,-1190.9043152,0.00018999,2]
[408031403,1773055833343,-250.0,0.00018999,2]
[408031404,1773055833352,-140.26864808,0.00018999,2]
[408031405,1773055838050,-500.0,0.0001856,2]
[408031406,1773055838060,-77.21868921,0.0001856,2]
[408031407,1773055838071,-96.65889671,0.0001856,2]
[408031408,1773055838080,-500.0,0.0001856,2]
[408031409,1773055838089,-37.9401197,0.0001856,2]
[408031410,1773055838100,-462.0598803,0.0001856,2]
[408031411,1773055838109,-500.0,0.0001856,2]
[408031412,1773055838118,-500.0,0.0001856,2]
[408031413,1773055838127,-500.0,0.0001856,2]
[408031414,1773055838136,-500.0,0.0001856,2]
[408031415,1773055838145,-500.0,0.0001856,2]
[408031416,1773055838154,-500.0,0.0001856,2]
[408031417,1773055838164,-500.0,0.0001856,2]
[408031418,1773055838173,-500.0,0.0001856,2]
[408031419,1773055838183,-500.0,0.0001856,2]
[408031420,1773055838193,-500.0,0.0001856,2]
[408031421,1773055838202,-500.0,0.0001856,2]
[408031422,1773055838212,-500.0,0.0001856,2]
[408031423,1773055838221,-500.0,0.0001856,2]
[408031424,1773055838230,-500.0,0.0001856,2]
[408031425,1773055838239,-500.0,0.0001856,2]
[408031426,1773055838248,-492.4744984,0.0001856,2]
[408031427,1773055838258,-500.0,0.0001856,2]
[408031428,1773055838266,-500.0,0.0001856,2]
[408031429,1773055838275,-5019.11632288,0.00018999,2]
[408031430,1773055838294,-902.79709872,0.00018999,2]
[408031431,1773055838305,-433.24202794,0.00018999,2]
[408031432,1773055838316,-868.04326897,0.00018999,2]
[408031433,1773055838329,-636.53263341,0.00018999,2]
[408031435,1773055838338,-45.40460072,0.00018999,2]
[408031437,1773055838349,-204.59539928,0.00018999,2]
[408031438,1773055838358,-3917.74500951,0.00018999,2]
[408031439,1773055838368,-3328.69324627,0.00018999,2]
[408031440,1773055838379,-753.56174422,0.00018999,2]
[408031442,1773055838388,-250.0,0.00018999,2]
[408031443,1773055838400,-451.47663708,0.00018999,2]
[408031444,1773055838411,-1048.52336292,0.00018999,2]
[408031445,1773055838419,-263.19860795,0.00018999,2]
[408031446,1773055838438,-4945.28451343,0.00018999,2]
[408031450,1773055840446,-2791.51687862,0.00018999,2]
[408031451,1773055840456,-261.64199575,0.00018999,2]
[408031452,1773055840464,-1500.0,0.00018999,2]
[408031453,1773055840475,-8000.0,0.00018999,2]
[408031454,1773055840484,-1500.0,0.00018999,2]
[408031455,1773055840493,-8000.0,0.00018999,2]
[408031456,1773055840502,-1500.0,0.00018999,2]
[408031457,1773055840511,-8000.0,0.00018999,2]
[408031458,1773055840520,-8000.0,0.00018999,2]